Cogmind - Beta 13 @@@ ROGUE MODE // 2024.05.01 @ 00:05:19 Player: Sunvar Result: Destroyed by D-53 Grenadier with Mini Grenade Launcher Performance ------------- Evolutions (0) 0 Regions Visited (4) 800 Robots Destroyed (12) 60 Value Destroyed (316) 316 Prototype IDs (0) 0 Alien Tech Used (0) 0 Bonus (0) 0 TOTAL SCORE: 1176 Bonus ------- None Cogmind --------- Core Integrity 0/250 Matter 140/300 Energy 86/100 System Corruption 0% Temperature Cool (0) Movement Core (400) Ox7 Location -9/Mines Parts ------- > --- POWER (1) -------- (None) > --- PROPULSION (2) --- (None) > --- UTILITY (2) ------ Large Storage Unit Seismic Detector > --- WEAPON (2) ------- Grenade Launcher > --- INVENTORY (15) --- Ion Engine Light Treads Aluminum Leg Compact Wheel Large Storage Unit Large Matter Pod (0) Large Matter Pod (0) Seismic Detector Seismic Detector Seismic Detector Small Laser Particle Gun Assault Rifle Light Assault Rifle Grenade Launcher Peak State ------------ > --- POWER ------------ Light Ion Engine > --- PROPULSION ------- Light Treads Light Treads > --- UTILITY ---------- Heat Sink Large Storage Unit > --- WEAPON ----------- EM Pulse Gun Small Laser > --- INVENTORY -------- Ion Engine Light Treads Aluminum Leg Compact Wheel Small Storage Unit Large Storage Unit EM Pulse Gun Grenade Launcher Grenade Launcher Grenade Launcher [Rating: 8] Favorites ----------- Power Light Ion Engine Engine Light Ion Engine Propulsion Light Treads Treads Light Treads Utility Large Storage Unit Device Seismic Detector Storage Large Storage Unit Weapon Small Laser Energy Gun Small Laser Ballistic Gun Light Assault Rifle Launcher Grenade Launcher Build | -11 -10 -10 -10 -9 ------- Run | Yrd Mat Min Exi Min Slots Evolved . | . . . . . Power . | . . . . . Propulsion . | . . . . . Utility . | . . . . . Weapon . | . . . . . Parts Attached 18 | 6 9 . . 3 Power 1 | 1 . . . . Engine 1 | 1 . . . . Core . | . . . . . Reactor . | . . . . . Propulsion 4 | 2 2 . . . Treads 4 | 2 2 . . . Leg . | . . . . . Wheel . | . . . . . Hover . | . . . . . Flight . | . . . . . Utility 4 | 1 3 . . . Device 2 | . 2 . . . Storage 2 | 1 1 . . . Processor . | . . . . . Hackware . | . . . . . Protection . | . . . . . Artifact . | . . . . . Weapon 9 | 2 4 . . 3 Energy Gun 4 | 2 2 . . . Energy Cannon . | . . . . . Ballistic Gun 1 | . 1 . . . Ballistic Cannon . | . . . . . Launcher 4 | . 1 . . 3 Special Weapon . | . . . . . Impact Weapon . | . . . . . Slashing Weapon . | . . . . . Piercing Weapon . | . . . . . Special Melee Weapon . | . . . . . Unidentified Prototypes . | . . . . . Parts Lost 4 | . . . . 4 Power 1 | . . . . 1 Propulsion 2 | . . . . 2 Utility . | . . . . . Weapon 1 | . . . . 1 Highest Loss Streak 4 | . . . . 4 To Critical Strikes . | . . . . . Average Slot Usage (%) 98 | . 97 100 100 92 Engine 13 | . 14 14 14 12 Treads 27 | . 27 28 28 24 Device 11 | . 8 14 14 14 Storage 15 | . 18 14 14 14 Energy Gun 16 | . 20 14 14 3 Ballistic Gun 10 | . 7 14 14 1 Launcher 1 | . . . . 21 Naked Turns . | . . . . . Heaviest Build 31 | 11 31 26 26 30 Greatest Support 40 | 40 40 40 40 40 Greatest Overweight (x) . | . . . . . Average Overweight (x) . | . . . . . Largest Inventory Capacity 15 | 8 15 15 15 15 Average Capacity 14 | 7 14 15 15 15 Most Carried 15 | 6 15 15 15 15 Average Carried 12 | 4 10 14 15 15 Final Capacity 15 | 8 15 15 15 15 Final Carried 15 | 6 14 15 15 15 Class Distribution -------------------- 100% | Mutant Dominant Class ---------------- Mutant | -10/Materials Mutant | -10/Mines Mutant | -10/Exiles Mutant | -9/Mines Resources | -11 -10 -10 -10 -9 ----------- Run | Yrd Mat Min Exi Min Matter Collected 380 | 254 96 15 . 15 Remotely . | . . . . . Salvage Created 486 | 52 321 . . 113 Parts 26 | 4 20 . . 2 Haulers Intercepted . | . . . . . Recyclers Shooed 3 | 1 2 . . . Parts Field Recycled . | . . . . . Retrieved Matter . | . . . . . Parts Self-Destructed . | . . . . . Prevented . | . . . . . Kills | -11 -10 -10 -10 -9 ------- Run | Yrd Mat Min Exi Min Combat Hostiles Destroyed 27 | . 7 . . 20 Guns 4 | . 4 . . . AOE 23 | . 3 . . 20 Classes Destroyed 5 | 1 2 . . 2 Worker 2 | . . . . 2 Tunneler 2 | 2 . . . . Mechanic 1 | . 1 . . . Grunt 7 | . 7 . . . Assembled 20 | . . . . 20 Best Kill Streak 20 | 2 4 . . 20 Combat Bots Only 18 | . 3 . . 18 Max Kills in Single Turn 6 | 1 2 . . 6 Gunslinging . | . . . . . Exploded 6 | . 1 . . 6 Melee . | . . . . . Uniques/NPCs Destroyed . | . . . . . Combat | -11 -10 -10 -10 -9 -------- Run | Yrd Mat Min Exi Min Hostile Shots Fired 54 | . 27 . . 27 Missed 11 | . 7 . . 4 Damage Taken 937 | . 328 . . 609 Core 250 | . 90 . . 160 Absorbed by Shields . | . . . . . Regen/Repaired (Parts) 115 | . 115 . . . Core Remaining (%) 100 | 100 . . . . Volleys Fired 33 | 4 20 . . 9 Largest 2 | 2 2 . . 2 Hottest 80 | 80 80 . . 70 Shots Fired 64 | 8 40 . . 16 Gun 47 | 8 38 . . 1 Cannon . | . . . . . Launcher 17 | . 2 . . 15 Special . | . . . . . Kinetic 10 | . 10 . . . Thermal 23 | 4 18 . . 1 Explosive 17 | . 2 . . 15 Electromagnetic 14 | 4 10 . . . Robot Hit Streak 7 | 5 7 . . 6 Robot Miss Streak 3 | 2 3 . . 1 Penetration Max . | . . . . . Secondary Targets . | . . . . . Shots Hit Robots 38 | 5 25 . . 8 Core Hits 67 | 2 18 . . 47 Critical Kills 1 | . 1 . . . Critical Parts Destroyed . | . . . . . Critical Strikes 2 | . 2 . . . Destroy 1 | . 1 . . . Corrupt 1 | . 1 . . . Melee Attacks . | . . . . . Impact . | . . . . . Slashing . | . . . . . Piercing . | . . . . . Sneak Attacks . | . . . . . Combat Hostiles . | . . . . . Follow-up Attacks . | . . . . . Damage Inflicted 1577 | 59 480 . . 1038 Guns 355 | 59 284 . . 12 Cannons . | . . . . . Explosions 1222 | . 196 . . 1026 Melee . | . . . . . Ramming . | . . . . . Kinetic 38 | . 38 . . . Thermal 195 | 33 150 . . 12 Explosive 1183 | . 157 . . 1026 Electromagnetic 161 | 26 135 . . . Impact . | . . . . . Slashing . | . . . . . Piercing . | . . . . . Highest Corruption . | . . . . . Average Corruption . | . . . . . Corruption Purged . | . . . . . Corruption Blocked . | . . . . . Overload Shots . | . . . . . Overflow Damage . | . . . . . Projectiles . | . . . . . Explosions . | . . . . . Melee . | . . . . . Knockbacks . | . . . . . Impact . | . . . . . Kinetic . | . . . . . Secondary . | . . . . . Self-Inflicted Damage 139 | . 59 . . 80 Shots 6 | . 2 . . 4 Rammed . | . . . . . Targets Rammed . | . . . . . Kicked . | . . . . . Crushed . | . . . . . Highest Temperature 114 | 36 114 . . 49 Average Temperature 36 | 16 43 . . 30 Received Heat Transfer 250 | . 150 . . 100 Siege Activations . | . . . . . Robots Corrupted . | . . . . . Combat Hostiles . | . . . . . Parts Fried . | . . . . . Impact Corruptions . | . . . . . Robots Melted . | . . . . . Combat Hostiles . | . . . . . Parts Melted . | . . . . . Heat Transferred 400 | 75 300 . . 25 Parts Sabotaged . | . . . . . Parts Stolen . | . . . . . Parts Stripped . | . . . . . Power Chain Reactions 1 | . 1 . . . Alert | -11 -10 -10 -10 -9 ------- Run | Yrd Mat Min Exi Min Peak Influence 143 | 10 143 . . 61 Initial 6 | . 6 . . . Average 41 | 2 70 . . 32 Maximum Alert Level . | . . . . . Low Security (%) 100 | 100 100 100 . 100 Level 1 . | . . . . . Level 2 . | . . . . . Level 3 . | . . . . . Level 4 . | . . . . . Level 5 . | . . . . . High Security . | . . . . . Max Security . | . . . . . Squads Dispatched . | . . . . . Investigation . | . . . . . Extermination . | . . . . . Reinforcement . | . . . . . Assault . | . . . . . Garrison . | . . . . . Intercept . | . . . . . Searches Triggered . | . . . . . Construction Impeded . | . . . . . Haulers Reinforced . | . . . . . Active Scanning Responses . | . . . . . Cargo Convoy Interrupts . | . . . . . Stealth | -11 -10 -10 -10 -9 --------- Run | Yrd Mat Min Exi Min Distress Signals . | . . . . . Communications Jammed . | . . . . . Distress Signals . | . . . . . Times Spotted 29 | . 9 . . 20 Peak Tracking Total 13 | . 3 . . 13 Tactical Retreats 1 | . 1 . . . Traps | -11 -10 -10 -10 -9 ------- Run | Yrd Mat Min Exi Min Traps Triggered 2 | . 2 . . . Indirectly . | . . . . . Trap Hack Attempts . | . . . . . Triggered . | . . . . . Disarmed . | . . . . . Reprogrammed . | . . . . . Reused . | . . . . . Traps Extracted . | . . . . . Installed . | . . . . . Triggered . | . . . . . Machines | -11 -10 -10 -10 -9 ---------- Run | Yrd Mat Min Exi Min Machines Disabled 1 | . 1 . . . Max in Single Turn 1 | . 1 . . . Machines Repaired . | . . . . . Machines Dismantled . | . . . . . Machines Sabotaged . | . . . . . Overloaded Fab Kills . | . . . . . Hacking | -11 -10 -10 -10 -9 --------- Run | Yrd Mat Min Exi Min Machines Accessed 7 | . 4 . 3 . Terminals 2 | . 2 . . . Fabricators . | . . . . . Repair Stations 1 | . 1 . . . Recycling Units 1 | . 1 . . . Scanalyzers . | . . . . . Garrison Access . | . . . . . Total Hacks 9 | . 6 . 3 . Successful 7 | . 4 . 3 . Failed 2 | . 2 . . . Catastrophic . | . . . . . Database Lockouts . | . . . . . Manual 3 | . 1 . 2 . Terminals 3 | . 3 . . . Fabricators . | . . . . . Repair Stations 2 | . 2 . . . Recycling Units 1 | . 1 . . . Scanalyzers . | . . . . . Garrison Access . | . . . . . Terminal Hacks 4 | . 1 . 3 . Record 3 | . . . 3 . Unreport Threat 1 | . 1 . . . Fabricator Hacks . | . . . . . Repair Station Hacks 2 | . 2 . . . Scan Component 1 | . 1 . . . Repair 1 | . 1 . . . Recycling Unit Hacks 1 | . 1 . . . Report Inventory 1 | . 1 . . . Scanalyzer . | . . . . . Garrison Access Hacks . | . . . . . Unauthorized Hacks . | . . . . . Terminals . | . . . . . Fabricators . | . . . . . Repair Stations . | . . . . . Recycling Units . | . . . . . Scanalyzers . | . . . . . Garrison Access . | . . . . . Data Cores Recovered . | . . . . . Used . | . . . . . Hacking Detections 4 | . 4 . . . Full Trace Events . | . . . . . Feedback Events . | . . . . . Feedback Blocked . | . . . . . Robot Schematics Acquired . | . . . . . Robots Built . | . . . . . Authchips . | . . . . . Time . | . . . . . Total Robot Build Rating . | . . . . . Part Schematics Acquired . | . . . . . Parts Built . | . . . . . Authchips . | . . . . . Time . | . . . . . Total Part Build Rating . | . . . . . Parts Repaired 1 | . 1 . . . Time 26 | . 26 . . . Parts Recycled . | . . . . . Recycled Matter . | . . . . . Retrieved Matter . | . . . . . Retrieved Components . | . . . . . Parts Scanalyzed . | . . . . . Part Schematics Acquired . | . . . . . Parts Damaged . | . . . . . Bothacking | -11 -10 -10 -10 -9 ------------ Run | Yrd Mat Min Exi Min Used RIF Installer . | . . . . . Robots Hacked . | . . . . . Non-combat . | . . . . . Combat . | . . . . . Robot Hacks Applied . | . . . . . Relay Couplers Released . | . . . . . Fabnet Peak Effective % . | . . . . . Robots Rewired . | . . . . . Allies Hacked . | . . . . . Hacks Repelled . | . . . . . Allies | -11 -10 -10 -10 -9 -------- Run | Yrd Mat Min Exi Min Total Allies . | . . . . . Largest Group . | . . . . . Highest-Rated Group . | . . . . . Highest-Rated Ally . | . . . . . Total Orders . | . . . . . Ally Attacks . | . . . . . Total Damage . | . . . . . Kills . | . . . . . Allies Corrupted . | . . . . . Allies Melted . | . . . . . Intel | -11 -10 -10 -10 -9 ------- Run | Yrd Mat Min Exi Min Robot Analysis Total . | . . . . . Derelict Logs Recovered 1 | . . 1 . . Drone Launches . | . . . . . Drone Recoveries . | . . . . . Exploration | -11 -10 -10 -10 -9 ------------- Run | Yrd Mat Min Exi Min Turns Passed 1769 | 113 692 363 525 76 Spaces Moved 946 | 56 328 208 329 25 Core 3 | 3 . . . . Treads 943 | 53 328 208 329 25 Legs . | . . . . . Wheels . | . . . . . Hover . | . . . . . Flight . | . . . . . Fastest Speed 50 | 50 160 160 160 160 Average Speed 159 | 154 160 160 160 160 Slowest Speed 160 | 160 160 160 160 160 Overloaded Moves . | . . . . . Propulsion Burnouts . | . . . . . Robots Hopped . | . . . . . Cave-ins Triggered . | . . . . . Exploration Rate (%) 33 | 4 53 38 61 10 Regions Visited 4 Branch Regions 3 Pre-discovered Areas 1 | . . 1 . . Known Exits Taken . | . . . . . Unknown Exits Taken 4 | 1 1 1 1 . Scrap Searched 1 | . . 1 . . Spaces Dug 16 | . . . . 16 Terrain Destroyed 102 | . 14 . . 88 Melee . | . . . . . Projectile . | . . . . . AOE 102 | . 14 . . 88 Terrain Rammed . | . . . . . Walls Destroyed . | . . . . . Machines Disabled . | . . . . . Actions | -11 -10 -10 -10 -9 --------- Run | Yrd Mat Min Exi Min Total 1139 | 72 458 238 328 43 Wait 115 | . 79 30 . 6 Move 942 | 55 327 207 328 25 Hop . | . . . . . Pick Up 21 | 7 13 1 . . Fast Attach 11 | 5 6 . . . Attach 2 | 1 1 . . . Detach 3 | . 3 . . . Swap 5 | . 2 . . 3 Drop 7 | . 7 . . . Fire 33 | 4 20 . . 9 Melee . | . . . . . Ram . | . . . . . Kick . | . . . . . Crush . | . . . . . Escape Stasis . | . . . . . Rewire . | . . . . . Trap . | . . . . . Miscellaneous . | . . . . . Route ------- -11/Scrapyard -10/Materials (discovered 2 exits: [*Mat] / [*Min]) -10/Mines -10/Exiles -9/Mines History --------- Turn | Location | Event 5 | -11/Scrapyard | Discovered new exit (range 15) 114 | -11/Scrapyard | Entered Materials 310 | -10/Materials | Build established: Mutant 543 | -10/Materials | Discovered new exit (range 9) 660 | -10/Materials | Repaired Lgt. Treads 715 | -10/Materials | Discovered new exit (range 12) 806 | -10/Materials | Entered Mines 1161 | -10/Mines | Deemed a non-threat by the Exiles lab entrance 1162 | -10/Mines | Discovered new exit (range 5) 1169 | -10/Mines | Entered Exiles 1169 | -10/Exiles | Found Exiles lab abandoned 1677 | -10/Exiles | Discovered new exit (range 14) 1694 | -10/Exiles | Entered Mines 1695 | -9/Mines | Assembled infested the area 1712 | -9/Mines | Core integrity fell below 50% 1721 | -9/Mines | Met a Derelict bent on vengeance 1750 | -9/Mines | Destroyed 18 combat bots 1767 | -9/Mines | Core integrity fell below 20% 1770 | -9/Mines | Destroyed by D-53 Grenadier with Mini Grenade Launcher Last Messages --------------- 01718_ K-01 Serf destroyed. 01718_ as-52909 destroyed. [Achievement: Exterminator] 01719_ The unstable cave ceiling collapses. 01721_ Acquired 9 matter. 01723_ Acquired 5 matter. 01724_ Acquired 1 matter. 01726_ as-45214 destroyed. 01729_ as-81739 destroyed. 01730_ The unstable cave ceiling collapses. 01758_ as-16144 destroyed. 01758_ as-49670 destroyed. 01761_ C-30 ARC bursts open, deploying its payload. 01761_ D-53 Grenadier unfolds itself. 01764_ The unstable cave ceiling collapses. 01764_ Grenade Launcher destroyed. 01766_ The unstable cave ceiling collapses. 01766_ Lgt. Ion Engine destroyed. 01766_ Lgt. Treads destroyed. 01768_ The unstable cave ceiling collapses. Map ----- +----------------------------------------------------+ | | | | | | | | | | | | | | | | | | | | | | | | | | | | | | | | | | | | | | | | | | | ????????????????????### ##???????????????????? | | ???????????????????## ###?????????????????? | | ????????????######## #####?????????????? | | ????????##### # # ## ##????????????? | | ????????# = @ #????????????? | | ????????# * d #???????????? | | ????????# ????? | | ????????# #????? | | ????????##### % # d #??????? | | ????????????# # ### % ##??????? | | ????????????## # ####??? ##???????? | | ????????????? # #??????? ##????????? | | ????????????## # # #????????# #?????????? | | ?????????????# # ## ?????????? ? #????????? | | ??????????????## ## ??????????????????????? | | ???????????????####### #?????????????????????? | | ?????????????????????? #?????????????????????? | | ?????????????????????? ?????????????????????? | | ?????????????????????? ?????????????????????? | | ?????????????????????? ??????????????????????? | | ??????????????????????? ????????????????????????? | | ?????????????????????????????????????????????????? | | ?????????????????????????????????????????????????? | | ?????????????????????????????????????????????????? | | ?????????????????????????????????????????????????? | | ?????????????????????????????????????????????????? | | ?????????????????????????????????????????????????? | | ?????????????????????????????????????????????????? | | ?????????????????????????????????????????????????? | +----------------------------------------------------+ Best States ------------- Heat Dissipation 35 Energy Generation 10 Energy Capacity 125 Matter Stores 300 Matter Capacity 300 Sight Range 16 Terrain Scan Density 10 Evasion (%) 40 Recoil Reduction 2 Item Schematics ----------------- None Robot Schematics ------------------ None Fabricated ------------ Nothing Alien Tech Used ----------------- None Achievements -------------- Exterminator Challenges ------------ None Game ------ Seed ProtonDataShotgun Manual? 0 Play Time 00:12:33 Cumulative 35.1 hours Start 2024.04.30 @ 23:54:24 End 2024.05.01 @ 00:05:19 Sessions 1 Manual Loads 0 Difficulty Rogue Special Mode None Game No. 25 Rogue 25 Adventurer 0 Explorer 0 Win Type - Total 0 Types 0/0/0/0/0/0/0/0/0 Lore% 20 Gallery% 32 Achievement% 23 Wizard Run 0 Options --------- Layout 0 ASCII 0 Keyboard 1 Movement Numpad Keybinds 0 Fullscreen 1 Font 24/Smallcaps Map View 76x56 Zoom Use 0% Tactical HUD 1 Map Filters NONE Filters NONE Steam 1 RUN: bcc02616-c66d-488d-b3b3-45fcd7aa3f0b